Workbook

Sheet sales leader imperatives
C1: Four questions you should be able to answer

Sheet current sales team RoI
B1: HOW DOES THE SALES TEAM RoI COMPARE? | BA1: CHART 1 | BC1: =IF(ISNA(VLOOKUP($H$6/1000000,BA2:BB62,2,FALSE )),0,VLOOKUP($H$6/1000000,BA2:BB62,2,FALSE )) -> 0.0002 | BD1: CHART 2 | BF1: =IF(ISNA(VLOOKUP($H$16*100,BD3:BE82,2,FALSE )),0,VLOOKUP($H$16*100,BD3:BE82,2,FALSE )) -> 0.001 | BG1: CHART 3 | BI1: =IF(ISNA(VLOOKUP($H$27,BG2:BH57,2,FALSE )),0,VLOOKUP($H$27,BG2:BH57,2,FALSE )) -> 0.001 | BJ1: CHART 4 | BL1: =IF(ISNA(VLOOKUP($H$37/1000,BJ2:BK71,2,FALSE )),0,VLOOKUP($H$37/1000,BJ2:BK71,2,FALSE )) -> 0.0002 | BN1: CHART 4 | BP1: =IF(ISNA(VLOOKUP($H$6/1000000,BN2:BO62,2,FALSE )),0,VLOOKUP($H$6/1000000,BN2:BO62,2,FALSE )) -> 0
BA2: 0 | BB2: =0.0002 -> 0.0002 | BC2: =BB2 -> 0.0002 | BE2: 40 | BF2: 14 | BG2: 0 | BH2: =_xlfn.GAMMA.DIST(BG2,2.35,16,FALSE)+0.001 -> 0.001 | BI2: =0.001 -> 0.001 | BJ2: 0 | BK2: =_xlfn.GAMMA.DIST(BJ2,4.55,41,FALSE)+0.0002 -> 0.0002 | BL2: =0.0002 -> 0.0002 | BN2: 0 | BO2: 0 | BP2: 0
BA3: 10 | BB3: =_xlfn.GAMMA.DIST(BA3,1.9,80,FALSE)+0.0002 -> 0.00196511445 | BC3: =IF(IF($BC$1>0,IF(BB3=$BC$1,$BC$1,0),IF(BA3=$H$6/1000000,BB3, AND(($H$6/1000000)>=BA2,($H$6/1000000)<BA3))),BB3,0.0002) -> 0.0002 | BD3: 0 | BE3: =0.001 -> 0.001 | BF3: =IF(AND($H$16*100>=BD3,$H$16*100<BD4),BE3,0.001) -> 0.001 | BG3: 2 | BH3: =_xlfn.GAMMA.DIST(BG3,2.35,16,FALSE)+0.001 -> 0.00376781107 | BI3: =IF(IF($BI$1>0,IF(BH3=$BI$1,$BI$1,0),IF(BG3=$H$27,BH3, AND($H$27>=BG2,$H$27<BG3))),BH3,0.001) -> 0.001 | BJ3: 10 | BK3: =_xlfn.GAMMA.DIST(BJ3,4.55,41,FALSE)+0.0002 -> 0.00021023223 | BL3: =IF(IF($BL$1>0,IF(BK3=$BL$1,$BL$1,0),IF(BJ3=$H$37/1000,BK3, AND($H$37/1000>=BJ2,$H$37/1000<BJ3))),BK3,0.0002) -> 0.0002 | BN3: 10 | BO3: 0 | BP3: =IF(IF($BC$1>0,IF(BO3=$BC$1,$BC$1,0),IF(BN3=$H$6/1000000,BO3, AND(($H$6/1000000)>=BN2,($H$6/1000000)<BN3))),BO3,0) -> 0
BA4: 20 | BB4: =_xlfn.GAMMA.DIST(BA4,1.9,80,FALSE)+0.0002 -> 0.003106785976 | BC4: =IF(IF($BC$1>0,IF(BB4=$BC$1,$BC$1,0),IF(BA4=$H$6/1000000,BB4, AND(($H$6/1000000)>=BA3,($H$6/1000000)<BA4))),BB4,0.0002) -> 0.0002 | BD4: 1 | BE4: =_xlfn.NORM.DIST(BD4,$BE$2,$BF$2,0)+0.001 -> 0.001588403334 | BF4: =IF(AND($H$16*100>=BD4,$H$16*100<BD5),BE4,0.001) -> 0.001 | BG4: 4 | BH4: 0.007226444565 | BI4: =IF(IF($BI$1>0,IF(BH4=$BI$1,$BI$1,0),IF(BG4=$H$27,BH4, AND($H$27>=BG3,$H$27<BG4))),BH4,0.001) -> 0.001 | BJ4: 20 | BK4: 0.0002939077201 | BL4: =IF(IF($BL$1>0,IF(BK4=$BL$1,$BL$1,0),IF(BJ4=$H$37/1000,BK4, AND($H$37/1000>=BJ3,$H$37/1000<BJ4))),BK4,0.0002) -> 0.0002 | BN4: 20 | BO4: 6.435955399e-05 | BP4: =IF(IF($BC$1>0,IF(BO4=$BC$1,$BC$1,0),IF(BN4=$H$6/1000000,BO4, AND(($H$6/1000000)>=BN3,($H$6/1000000)<BN4))),BO4,0) -> 0
BA5: 30 | BB5: 0.003894948411 | BC5: 0.0002 | BD5: 2 | BE5: =_xlfn.NORM.DIST(BD5,$BE$2,$BF$2,0)+0.001 -> 0.001716115327 | BF5: 0.001 | BG5: 6 | BH5: 0.01049896998 | BI5: 0.001 | BJ5: 30 | BK5: 0.0005103843268 | BL5: 0.0002 | BN5: 30 | BO5: 7.167153371e-05 | BP5: 0
BA6: 40 | BB6: 0.004424413598 | BC6: 0.0002 | BD6: 3 | BE6: 0.001867111659 | BF6: 0.001 | BG6: 8 | BH6: 0.01336109658 | BI6: 0.001 | BJ6: 40 | BK6: 0.0008753156502 | BL6: 0.0002 | BN6: 40 | BO6: 7.978967199e-05 | BP6: 0
BA7: 50 | BB7: 0.004757205715 | BC7: 0.0002 | BD7: 4 | BE7: 0.002044603061 | BF7: 0.001 | BG7: 10 | BH7: 0.01574343593 | BI7: 0.001 | BJ7: 50 | BK7: 0.001368454693 | BL7: 0.0002 | BN7: 50 | BO7: 8.879901582e-05 | BP7: 0
BA8: 60 | BB8: 0.004938871632 | BC8: 0.0002 | BD8: 5 | BE8: 0.002252021464 | BF8: 0.001 | BG8: 12 | BH8: 0.01764204066 | BI8: 0.001 | BJ8: 60 | BK8: 0.00194895976 | BL8: 0.0002 | BN8: 60 | BO8: 9.8792968e-05 | BP8: 0
BA9: 70 | BB9: 0.005004412021 | BC9: 0.005004412021 | BD9: 6 | BE9: 0.002492988513 | BF9: 0.001 | BG9: 14 | BH9: 0.01908414308 | BI9: 0.001 | BJ9: 70 | BK9: 0.002568729328 | BL9: 0.0002 | BN9: 70 | BO9: 0.0001098740044 | BP9: 0
B10: chart min = 10 million, max = 500 million, mode = 75 million | BA10: 80 | BB10: 0.004981302124 | BC10: 0.0002 | BD10: 7 | BE10: 0.002771272459 | BF10: 0.001 | BG10: 16 | BH10: 0.02011174107 | BI10: 0.001 | BJ10: 80 | BK10: 0.003181682288 | BL10: 0.0002 | BN10: 80 | BO10: 0.0001221544344 | BP10: 0
B11: chart axis titles: vert = # organisations, horiz = $ revenue | BA11: 90 | BB11: 0.004891337168 | BC11: 0.0002 | BD11: 8 | BE11: 0.003090732574 | BF11: 0.001 | BG11: 18 | BH11: 0.02077285346 | BI11: 0.001 | BJ11: 90 | BK11: 0.003749174371 | BL11: 0.0002 | BN11: 90 | BO11: 0.0001357572025 | BP11: 0
B12: do not allow curve to touch horiztonal axis | BA12: 100 | BB12: 0.004751888111 | BC12: 0.0002 | BD12: 9 | BE12: 0.003455250528 | BF12: 0.001 | BG12: 20 | BH12: 0.02111662637 | BI12: 0.02111662637 | BJ12: 100 | BK12: 0.004242415448 | BL12: 0.0002 | BN12: 100 | BO12: 0.0001508167294 | BP12: 0
BA13: 110 | BB13: 0.004576814944 | BC13: 0.0002 | BD13: 10 | BE13: 0.003868648603 | BF13: 0.001 | BG13: 22 | BH13: 0.02119056465 | BI13: 0.001 | BJ13: 110 | BK13: 0.004642827934 | BL13: 0.0002 | BN13: 110 | BO13: 0.0001674797887 | BP13: 0
BA14: 120 | BB14: 0.004377159698 | BC14: 0.0002 | BD14: 11 | BE14: 0.004334595067 | BF14: 0.001 | BG14: 24 | BH14: 0.02103900767 | BI14: 0.001 | BJ14: 120 | BK14: 0.004941146789 | BL14: 0.0002 | BN14: 120 | BO14: 0.0001859064132 | BP14: 0
BA15: 130 | BB15: 0.004161687039 | BC15: 0.0002 | BD15: 12 | BE15: 0.004856497608 | BF15: 0.001 | BG15: 26 | BH15: 0.02070235975 | BI15: 0.001 | BJ15: 130 | BK15: 0.005135866393 | BL15: 0.0002 | BN15: 130 | BO15: 0.0002062708237 | BP15: 0
K16: =IF(OR(H6="",H16=""),"",H6*H16) ->  | BA16: 140 | BB16: 0.003937313842 | BC16: 0.0002 | BD16: 13 | BE16: 0.00543738633 | BF16: 0.001 | BG16: 28 | BH16: 0.02021678614 | BI16: 0.001 | BJ16: 140 | BK16: 0.005231454365 | BL16: 0.0002 | BN16: 140 | BO16: 0.0002287623697 | BP16: 0
BA17: 150 | BB17: 0.003709454856 | BC17: 0.0002 | BD17: 14 | BE17: 0.006079788466 | BF17: 0.001 | BG17: 30 | BH17: 0.01961419668 | BI17: 0.001 | BJ17: 150 | BK17: 0.005236600423 | BL17: 0.005236600423 | BN17: 150 | BO17: 0.0002535864705 | BP17: 0
BA18: 160 | BB18: 0.003482303238 | BC18: 0.0002 | BD18: 15 | BE18: 0.006785597624 | BF18: 0.001 | BG18: 32 | BH18: 0.01892240409 | BI18: 0.001 | BJ18: 160 | BK18: 0.005162653841 | BL18: 0.0002 | BN18: 160 | BO18: 0.0002809655364 | BP18: 0
BA19: 170 | BB19: 0.003259059581 | BC19: 0.0002 | BD19: 16 | BE19: 0.007555940997 | BF19: 0.001 | BG19: 34 | BH19: 0.01816538395 | BI19: 0.001 | BJ19: 170 | BK19: 0.005022322289 | BL19: 0.0002 | BN19: 170 | BO19: 0.0003111398524 | BP19: 0
B20: chart min = 5%, max = 75%, mode = 40% | BA20: 180 | BB20: 0.003042119609 | BC20: 0.0002 | BD20: 17 | BE20: 0.008391048607 | BF20: 0.001 | BG20: 36 | BH20: 0.01736358851 | BI20: 0.001 | BJ20: 180 | BK20: 0.004828651369 | BL20: 0.0002 | BN20: 180 | BO20: 0.0003443683949 | BP20: 0
B21: chart axis titles: vert = # organisations, horiz = % GM | BA21: 190 | BB21: 0.002833228379 | BC21: 0.0002 | BD21: 18 | BE21: 0.009290129072 | BF21: 0.001 | BG21: 38 | BH21: 0.01653428322 | BI21: 0.001 | BJ21: 190 | BK21: 0.004594271414 | BL21: 0.0002 | BN21: 190 | BO21: 0.0003809295494 | BP21: 0
B22: do not allow curve to touch horiztonal axis | BA22: 200 | BB22: 0.002633607146 | BC22: 0.0002 | BD22: 19 | BE22: 0.01025125683 | BF22: 0.001 | BG22: 40 | BH22: 0.01569188572 | BI22: 0.001 | BJ22: 200 | BK22: 0.004330880157 | BL22: 0.0002 | BN22: 200 | BO22: 0.0004211216874 | BP22: 0
BA23: 210 | BB23: 0.002444057759 | BC23: 0.0002 | BD23: 20 | BE23: 0.01127127591 | BF23: 0.001 | BG23: 42 | BH23: 0.01484829432 | BI23: 0.001 | BJ23: 210 | BK23: 0.004048922123 | BL23: 0.0002 | BN23: 210 | BO23: 0.000465263554 | BP23: 0
BA24: 220 | BB24: 0.002265048558 | BC24: 0.0002 | BD24: 21 | BE24: 0.01234572532 | BF24: 0.001 | BG24: 44 | BH24: 0.01401319825 | BI24: 0.001 | BJ24: 220 | BK24: 0.003757424249 | BL24: 0.0002 | BN24: 220 | BO24: 0.0005136944027 | BP24: 0
BA25: 230 | BB25: 0.002096784961 | BC25: 0.0002 | BD25: 22 | BE25: 0.01346879102 | BF25: 0.001 | BG25: 46 | BH25: 0.01319436515 | BI25: 0.001 | BJ25: 230 | BK25: 0.003463949861 | BL25: 0.0002 | BN25: 230 | BO25: 0.0005667738068 | BP25: 0
BA26: 240 | BB26: 0.001939267383 | BC26: 0.0002 | BD26: 23 | BE26: 0.01463328894 | BF26: 0.001 | BG26: 48 | BH26: 0.01239790369 | BI26: 0.001 | BJ26: 240 | BK26: 0.003174637753 | BL26: 0.0002 | BN26: 240 | BO26: 0.0006248810553 | BP26: 0
BA27: 250 | BB27: 0.001792338635 | BC27: 0.0002 | BD27: 24 | BE27: 0.01583068272 | BF27: 0.001 | BG27: 50 | BH27: 0.01162850076 | BI27: 0.001 | BJ27: 250 | BK27: 0.002894298596 | BL27: 0.0002 | BN27: 250 | BO27: 0.0006884140289 | BP27: 0
BA28: 260 | BB28: 0.001655722611 | BC28: 0.0002 | BD28: 25 | BE28: 0.01705113919 | BF28: 0.001 | BG28: 52 | BH28: 0.01088963369 | BI28: 0.001 | BJ28: 260 | BK28: 0.002626546376 | BL28: 0.0002 | BN28: 260 | BO28: 0.0007577874264 | BP28: 0
BA29: 270 | BB29: 0.001529055729 | BC29: 0.0002 | BD29: 26 | BE29: 0.01828362318 | BF29: 0.001 | BG29: 54 | BH29: 0.01018375855 | BI29: 0.001 | BJ29: 270 | BK29: 0.002373947691 | BL29: 0.0002 | BN29: 270 | BO29: 0.0008334301897 | BP29: 0
BA30: 280 | BB30: 0.001411912381 | BC30: 0.0002 | BD30: 27 | BE30: 0.01951603229 | BF30: 0.001 | BG30: 56 | BH30: 0.009512476145 | BI30: 0.001 | BJ30: 280 | BK30: 0.002138176195 | BL30: 0.0002 | BN30: 280 | BO30: 0.0009157819444 | BP30: 0
B31: chart min = 5, max = 100, mode = 20 | BA31: 290 | BB31: 0.001303825396 | BC31: 0.0002 | BD31: 28 | BE31: 0.0207353704 | BF31: 0.001 | BG31: 58 | BH31: 0.008876677287 | BI31: 0.001 | BJ31: 290 | BK31: 0.001920163202 | BL31: 0.0002 | BN31: 290 | BO31: 0.001005288241 | BP31: 0
B32: chart axis titles: vert = # organisations, horiz = # sales execs | BA32: 300 | BB32: 0.001204302405 | BC32: 0.0002 | BD32: 29 | BE32: 0.02192795755 | BF32: 0.001 | BG32: 60 | BH32: 0.008276669313 | BI32: 0.001 | BJ32: 300 | BK32: 0.001720238516 | BL32: 0.0002 | BN32: 300 | BO32: 0.001102394337 | BP32: 0
B33: do not allow curve to touch horiztonal axis | BA33: 310 | BB33: 0.001112838792 | BC33: 0.0002 | BD33: 30 | BE33: 0.0230796722 | BF33: 0.001 | BG33: 62 | BH33: 0.007712285516 | BI33: 0.001 | BJ33: 310 | BK33: 0.001538257872 | BL33: 0.0002 | BN33: 310 | BO33: 0.001207537223 | BP33: 0
BA34: 320 | BB34: 0.001028927855 | BC34: 0.0002 | BD34: 31 | BE34: 0.02417622023 | BF34: 0.001 | BG34: 64 | BH34: 0.00718297934 | BI34: 0.001 | BJ34: 320 | BK34: 0.001373715212 | BL34: 0.0002 | BN34: 320 | BO34: 0.001321135525 | BP34: 0
BA35: 330 | BB35: 0.0009520686555 | BC35: 0.0002 | BD35: 32 | BE35: 0.02520342398 | BF35: 0.001 | BG35: 66 | BH35: 0.006687904988 | BI35: 0.001 | BJ35: 330 | BK35: 0.001225839254 | BL35: 0.0002 | BN35: 330 | BO35: 0.001443576866 | BP35: 0
BA36: 340 | BB36: 0.0008817719951 | BC36: 0.0002 | BD36: 33 | BE36: 0.02614752334 | BF36: 0.001 | BG36: 68 | BH36: 0.006225986002 | BI36: 0.001 | BJ36: 340 | BK36: 0.001093674774 | BL36: 0.0002 | BN36: 340 | BO36: 0.001575202193 | BP36: 0
K37: =IF(H37="","",H37*H27) ->  | Q37: =IF(OR(K37="",N37="")," ",N37/K37) ->  | BA37: 350 | BB37: 0.00081756484 | BC37: 0.0002 | BD37: 34 | BE37: 0.02699548012 | BF37: 0.001 | BG37: 70 | BH37: 0.005795973268 | BI37: 0.001 | BJ37: 350 | BK37: 0.0009761495635 | BL37: 0.0002 | BN37: 350 | BO37: 0.00171628647 | BP37: 0
BA38: 360 | BB38: 0.0007589935062 | BC38: 0.0002 | BD38: 35 | BE38: 0.02773527638 | BF38: 0.001 | BG38: 72 | BH38: 0.005396493746 | BI38: 0.001 | BJ38: 360 | BK38: 0.0008721284125 | BL38: 0.0002 | BN38: 360 | BO38: 0.001867015064 | BP38: 0
BA39: 370 | BB39: 0.0007056258319 | BC39: 0.0002 | BD39: 36 | BE39: 0.02835619714 | BF39: 0.001 | BG39: 74 | BH39: 0.00502609113 | BI39: 0.001 | BJ39: 370 | BK39: 0.0007804556111 | BL39: 0.0002 | BN39: 370 | BO39: 0.002027455013 | BP39: 0
BA40: 380 | BB40: 0.0006570525418 | BC40: 0.0002 | BD40: 37 | BE40: 0.02884908838 | BF40: 0.001 | BG40: 76 | BH40: 0.004683259508 | BI40: 0.001 | BJ40: 380 | BK40: 0.0006999875358 | BL40: 0.0002 | BN40: 380 | BO40: 0.002197520229 | BP40: 0
B41: chart min = 100,000, max = 500,000, mode = 150,000 | BA41: 390 | BB41: 0.0006128879684 | BC41: 0.0002 | BD41: 38 | BE41: 0.02920658142 | BF41: 0.001 | BG41: 78 | BH41: 0.00436647096 | BI41: 0.001 | BJ41: 390 | BK41: 0.0006296168253 | BL41: 0.0002 | BN41: 390 | BO41: 0.002376929528 | BP41: 0
B42: chart axis titles: vert = # organisations, horiz = $ per sales exec | BA42: 400 | BB42: 0.0005727702658 | BC42: 0.0002 | BD42: 39 | BE42: 0.02942327625 | BF42: =IF(AND($H$16*100>=BD42,$H$16*100<BD43),BE42,0.001) -> 0.001 | BG42: 80 | BH42: 0.004074197967 | BI42: 0.001 | BJ42: 400 | BK42: 0.0005682895637 | BL42: 0.0002 | BN42: 400 | BO42: 0.002565156207 | BP42: 0
B43: do not allow curve to touch horiztonal axis | BA43: 410 | BB43: 0.00053636123 | BC43: 0.0002 | BD43: 40 | BE43: 0.02949587717 | BF43: 0.02949587717 | BG43: 82 | BH43: 0.003804931367 | BI43: 0.001 | BJ43: 410 | BK43: 0.0005150167533 | BL43: 0.0002 | BN43: 410 | BO43: 0.002761367648 | BP43: 0
BA44: 420 | BB44: 0.000503345818 | BC44: 0.0002 | BD44: 41 | BE44: 0.02942327625 | BF44: =IF(AND($H$16*100>=BD44,$H$16*100<BD45),BE44,0.001) -> 0.001 | BG44: 84 | BH44: 0.003557194515 | BI44: 0.001 | BJ44: 420 | BK44: 0.0004688812121 | BL44: 0.0002 | BN44: 420 | BO44: 0.002964353191 | BP44: 0
BA45: 430 | BB45: 0.0004734314405 | BC45: 0.0002 | BD45: 42 | BE45: 0.02920658142 | BF45: 0.001 | BG45: 86 | BH45: 0.003329554241 | BI45: 0.001 | BJ45: 430 | BK45: 0.0004290408835 | BL45: 0.0002 | BN45: 430 | BO45: 0.00317243822 | BP45: 0
BA46: 440 | BB46: 0.0004463470914 | BC46: 0.0002 | BD46: 43 | BE46: 0.02884908838 | BF46: 0.001 | BG46: 88 | BH46: 0.003120629092 | BI46: 0.001 | BJ46: 440 | BK46: 0.0003947293935 | BL46: 0.0002 | BN46: 440 | BO46: 0.003383382081 | BP46: 0
BA47: 450 | BB47: 0.0004218423629 | BC47: 0.0002 | BD47: 44 | BE47: 0.02835619714 | BF47: 0.001 | BG47: 90 | BH47: 0.00292909531 | BI47: 0.001 | BJ47: 450 | BK47: 0.0003652545592 | BL47: 0.0002 | BN47: 450 | BO47: 0.003594257035 | BP47: 0
B48: =IF(ISERROR((H6*H16)/(H27*H37))=TRUE,0,(H6*H16)/(H27*H37)) -> 0 | D48: : | E48: 1 | BA48: 460 | BB48: 0.0003996863865 | BC48: 0.0002 | BD48: 45 | BE48: 0.02773527638 | BF48: 0.001 | BG48: 92 | BH48: 0.002753690923 | BI48: 0.001 | BJ48: 460 | BK48: 0.0003399954256 | BL48: 0.0002 | BN48: 460 | BO48: 0.003801305013 | BP48: 0
BA49: 470 | BB49: 0.0003796667333 | BC49: 0.0002 | BD49: 46 | BE49: 0.02699548012 | BF49: 0.001 | BG49: 94 | BH49: 0.002593218275 | BI49: 0.001 | BJ49: 470 | BK49: 0.0003183982968 | BL49: 0.0002 | BN49: 470 | BO49: 0.003999768403 | BP49: 0
BA50: 480 | BB50: 0.0003615882966 | BC50: 0.0002 | BD50: 47 | BE50: 0.02614752334 | BF50: 0.001 | BG50: 96 | BH50: 0.002446545276 | BI50: 0.001 | BJ50: 480 | BK50: 0.0002999721354 | BL50: 0.0002 | BN50: 480 | BO50: 0.004183690503 | BP50: 0
BA51: 490 | BB51: 0.0003452721791 | BC51: 0.0002 | BD51: 48 | BE51: 0.02520342398 | BF51: 0.001 | BG51: 98 | BH51: 0.002312605618 | BI51: 0.001 | BJ51: 490 | BK51: 0.0002842836193 | BL51: 0.0002 | BN51: 490 | BO51: 0.004345680553 | BP51: 0
BA52: 500 | BB52: 0.0003305545982 | BC52: 0.0002 | BD52: 49 | BE52: 0.02417622023 | BF52: 0.001 | BG52: 100 | BH52: 0.002190398158 | BI52: 0.001 | BJ52: 500 | BK52: 0.0002709520789 | BL52: 0.0002 | BN52: 500 | BO52: 0.004476637451 | BP52: 0
BA53: 510 | BB53: 0.0003172858223 | BC53: 0.0002 | BD53: 50 | BE53: 0.0230796722 | BF53: 0.001 | BG53: 102 | BH53: 0.002078985648 | BI53: 0.001 | BJ53: 510 | BK53: 0.0002596444792 | BL53: 0.0002 | BN53: 510 | BO53: 0.004565425322 | BP53: 0
BA54: 520 | BB54: 0.0003053291447 | BC54: 0.0002 | BD54: 51 | BE54: 0.02192795755 | BF54: 0.001 | BG54: 104 | BH54: 0.00197749295 | BI54: 0.001 | BJ54: 520 | BK54: 0.0002500705673 | BL54: 0.0002 | BN54: 520 | BO54: 0.004598493015 | BP54: 0
BA55: 530 | BB55: 0.0002945599036 | BC55: 0.0002 | BD55: 52 | BE55: 0.0207353704 | BF55: 0.001 | BG55: 106 | BH55: 0.001885104877 | BI55: 0.001 | BJ55: 530 | BK55: 0.0002419782661 | BL55: 0.0002 | BN55: 530 | BO55: 0.00455942834 | BP55: 0
BA56: 540 | BB56: 0.0002848645498 | BC56: 0.0002 | BD56: 53 | BE56: 0.01951603229 | BF56: 0.001 | BG56: 108 | BH56: 0.001801063742 | BI56: 0.001 | BJ56: 540 | BK56: 0.0002351493682 | BL56: 0.0002 | BN56: 540 | BO56: 0.004428436432 | BP56: 0
BA57: 550 | BB57: 0.0002761397661 | BC57: 0.0002 | BD57: 54 | BE57: 0.01828362318 | BF57: 0.001 | BG57: 110 | BH57: 0.001724666725 | BI57: 0.001 | BJ57: 550 | BK57: 0.0002293955601 | BL57: 0.0002 | BN57: 550 | BO57: 0.00418172991 | BP57: 0
BA58: 560 | BB58: 0.0002682916383 | BC58: 0.0002 | BD58: 55 | BE58: 0.01705113919 | BF58: 0.001 | BJ58: 560 | BK58: 0.0002245547889 | BL58: 0.0002 | BN58: 560 | BO58: 0.003790816623 | BP58: 0
BA59: 570 | BB59: 0.0002612348794 | BC59: 0.0002 | BD59: 56 | BE59: 0.01583068272 | BF59: 0.001 | BJ59: 570 | BK59: 0.0002204879716 | BL59: 0.0002 | BN59: 570 | BO59: 0.003221668494 | BP59: 0
BA60: 580 | BB60: 0.0002548921044 | BC60: 0.0002 | BD60: 57 | BE60: 0.01463328894 | BF60: 0.001 | BJ60: 580 | BK60: 0.0002170760383 | BL60: 0.0002 | BN60: 580 | BO60: 0.002433752447 | BP60: 0
BA61: 590 | BB61: 0.0002491931562 | BC61: 0.0002 | BD61: 58 | BE61: 0.01346879102 | BF61: 0.001 | BJ61: 590 | BK61: 0.0002142172926 | BL61: 0.0002 | BN61: 590 | BO61: 0.00137890141 | BP61: 0
BA62: 600 | BB62: 0.0002440744795 | BC62: 0.0002 | BD62: 59 | BE62: 0.01234572532 | BF62: 0.001 | BJ62: 600 | BK62: 0.0002118250698 | BL62: 0.0002 | BN62: 600 | BO62: =_xlfn.GAMMA.DIST(BN62,2,80,FALSE) -> 5.18516597e-05 | BP62: 0
BD63: 60 | BE63: 0.01127127591 | BF63: 0.001
BD64: 61 | BE64: 0.01025125683 | BF64: 0.001
BD65: 62 | BE65: 0.009290129072 | BF65: 0.001
BD66: 63 | BE66: 0.008391048607 | BF66: 0.001
BD67: 64 | BE67: 0.007555940997 | BF67: 0.001
BD68: 65 | BE68: 0.006785597624 | BF68: 0.001
BD69: 66 | BE69: =_xlfn.NORM.DIST(BD69,$BE$2,$BF$2,0)+0.001 -> 0.006079788466 | BF69: 0.001
BD70: 67 | BE70: 0.00543738633 | BF70: 0.001
BD71: 68 | BE71: 0.004856497608 | BF71: 0.001
BD72: 69 | BE72: 0.004334595067 | BF72: 0.001
BD73: 70 | BE73: 0.003868648603 | BF73: 0.001
BD74: 71 | BE74: 0.003455250528 | BF74: 0.001
BD75: 72 | BE75: 0.003090732574 | BF75: 0.001
BD76: 73 | BE76: 0.002771272459 | BF76: 0.001
BD77: 74 | BE77: 0.002492988513 | BF77: 0.001
BD78: 75 | BE78: 0.002252021464 | BF78: 0.001
BD79: 76 | BE79: 0.002044603061 | BF79: 0.001
BD80: 77 | BE80: 0.001867111659 | BF80: 0.001
BD81: 78 | BE81: 0.001716115327 | BF81: 0.001
BD82: 79 | BE82: 0.001588403334 | BF82: 0.001

Sheet sales team resourcing
B1: ARE THERE PLANS TO TO CHANGE SALES TEAM RESOURCING LEVELS?
B3: Current/past year sales team headcount is | H3: =SalesTeamNum -> 0
G5: The current total cost to mobilise the team is | H5: ='current sales team RoI'!H37 -> 0 | J5: per head
B6: What will the headcount be in the current/next year?
H8: =IF(ISERROR(B8/'current sales team RoI'!H27)=TRUE,0,B8/'current sales team RoI'!H27) -> 0
B14: What will be the TOTAL cost of each full time equivalent head in the sales team in the current/next year?
H16: =IF(ISERROR((B16/'current sales team RoI'!$H$37)-100%)=TRUE,0,(B16/'current sales team RoI'!$H$37)-100%) -> 0
H22: =IF(OR(B16="",B8=""),"",B16*B8) ->  | M22: ='current sales team RoI'!K37 ->  | R22: =IF(OR(H22="",M22=""),"",H22-M22) -> 

Sheet sales team productivity
B1: HOW DO SALES TEAM PRODUCTIVITY BENCHMARKS COMPARE?
B3: The sales team "law of gravity" - click each component to view its benchmarks
A18: VISIT CAPACITY
AW19: CHART 1 | AY19: =IF(ISNA(VLOOKUP(ROUNDDOWN($I$23,1),AV20:AX75,3,FALSE )),0,VLOOKUP(ROUNDDOWN($I$23,1),AV20:AX75,3,FALSE )) -> 0.002 | AZ19: CHART 2 | BB19: =IF(ISNA(VLOOKUP(ROUND($I$43,1),AZ21:BA129,2,FALSE )),0,VLOOKUP(ROUND($I$43,1),AZ21:BA129,2,FALSE )) -> 0.01081007105 | BD19: CHART 3 | BF19: =IF(ISNA(VLOOKUP(ROUND($I$84*100,0),$BC$20:$BE$70,3,FALSE )),0,VLOOKUP(ROUND($I$84*100,0),$BC$20:$BE$70,3,FALSE )) -> 0.002 | BG19: CHART 4 | BI19: =IF(ISNA(VLOOKUP($I$94,BG20:BH75,2,FALSE )),0,VLOOKUP($I$94,BG20:BH75,2,FALSE )) -> 0.006 | BJ19: CHART 5 | BL19: CHART 6 | BN19: CHART 7 | BP19: =IF(ISNA(VLOOKUP($H$31*100,BN21:BO101,2,FALSE )),0,VLOOKUP($H$31*100,BN21:BO101,2,FALSE )) -> 0.009777822544
AV20: 0 | AW20: 55 | AX20: 0.002 | AY20: 0.002 | BA20: 4 | BB20: 1.4 | BC20: 0 | BD20: 0 | BE20: =GAMMADIST(BD20,10,2.2,FALSE)+0.002 -> 0.002 | BF20: =BE20 -> 0.002 | BG20: 0 | BH20: =GAMMADIST(BG20,2.9,1.4,FALSE)+0.006 -> 0.006 | BI20: =BH20 -> 0.006 | BJ20: 0 | BK20: 23533.64137 | BL20: 0 | BM20: 0 | BO20: 2.5 | BP20: 0.8
AV21: 0.1 | AW21: 54 | AX21: =GAMMADIST(AW21,5.8,3,FALSE)+0.002 -> 0.002062849534 | AY21: =IF(IF($AY$19>0,IF(AX21=$AY$19,$AY$19,0),IF(AV21=$I$23/1000000,AX21, AND(($I$23/1000000)>=AV20,($I$23/1000000)<AV21))),AX21,0.002) -> 0.002 | AZ21: 0 | BA21: =NORMDIST(AZ21,$BA$20,$BB$20,0)+0.006 -> 0.01081007105 | BB21: =IF(ROUNDDOWN($I$43,1)=AZ21,BA21,0.006) -> 0.01081007105 | BC21: 1 | BD21: 1 | BE21: =GAMMADIST(BD21,10,2.2,FALSE)+0.002 -> 0.002000000659 | BF21: =IF(IF($BF$19>0,IF(BE21=$BF$19,$BF$19,0),IF(BC21=$I$84*100,BE21, AND($I$84*100>=BC20,$I$84*100<BC21))),BE21,0.002) -> 0.002 | BG21: 0.25 | BH21: =GAMMADIST(BG21,2.9,1.4,FALSE)+0.006 -> 0.01838623119 | BI21: =IF(IF($BI$19>0,IF(BH21=$BI$19,$BI$19,0),IF($BG$21=$I$94,BH21, AND($I$94>=BG20,$I$94<BG21))),BH21,0.006) -> 0.006 | BJ21: 5520.578152 | BK21: 33445.61772 | BL21: 0 | BM21: 0 | BN21: 0 | BO21: =NORMDIST(BN21,$BO$20,$BP$20,0)+0.006 -> 0.009777822544 | BP21: =IF(ROUNDDOWN($N$32,1)=BN21,BO21,0.006) -> 
AV22: 0.2 | AW22: 53 | AX22: =GAMMADIST(AW22,5.8,3,FALSE)+0.002 -> 0.002080186455 | AY22: 0.002 | AZ22: 0.1 | BA22: =NORMDIST(AZ22,$BA$20,$BB$20,0)+0.006 -> 0.01188403334 | BB22: =IF(ROUNDDOWN($I$43,1)=AZ22,BA22,0.006) -> 0.006 | BC22: 2 | BD22: 2 | BE22: 0.002000214026 | BF22: =IF(IF($BF$19>0,IF(BE22=$BF$19,$BF$19,0),IF(BC22=$I$84*100,BE22, AND($I$84*100>=BC21,$I$84*100<BC22))),BE22,0.002) -> 0.002 | BG22: 0.5 | BH22: 0.04466727683 | BI22: 0.006 | BJ22: 5520.578152 | BK22: 179165.6319 | BL22: 7113.202803 | BM22: 0 | BN22: 0.1 | BO22: =NORMDIST(BN22,$BO$20,$BP$20,0)+0.006 -> 0.01153981051 | BP22: =IF(ROUNDDOWN($N$32,1)=BN22,BO22,0.006) -> 
AV23: 0.3 | AW23: 52 | AX23: 0.002102131031 | AY23: 0.002 | AZ23: 0.2 | BA23: 0.01316115327 | BB23: =IF(ROUNDDOWN($I$43,1)=AZ23,BA23,0.006) -> 0.006 | BC23: 3 | BD23: 3 | BE23: 0.002005222539 | BF23: 0.002 | BG23: 0.75 | BH23: 0.07588185002 | BI23: 0.006 | BJ23: 5556.199208 | BK23: 71415.53997 | BL23: 7113.202803 | BM23: 0 | BN23: 0.2 | BO23: 0.01399765039
AV24: 0.4 | AW24: 51 | AX24: 0.002129850414 | AY24: 0.002 | AZ24: 0.3 | BA24: 0.01467111659 | BB24: =IF(ROUNDDOWN($I$43,1)=AZ24,BA24,0.006) -> 0.006 | BC24: 4 | BD24: 4 | BE24: 0.002044149293 | BF24: 0.002 | BG24: 1 | BH24: 0.1069707093 | BI24: 0.006 | BJ24: 5556.199208 | BK24: 57191.90886 | BL24: 7174.622123 | BM24: 0 | BN24: 0.3 | BO24: 0.01736695313
AV25: 0.5 | AW25: 50 | AX25: 0.002164788667 | AY25: 0.002 | AZ25: 0.4 | BA25: 0.01644603061 | BB25: 0.006 | BC25: 5 | BD25: 5 | BE25: 0.002208788841 | BF25: 0.002 | BG25: 1.25 | BH25: 0.1350541117 | BI25: 0.006 | BJ25: 5777.793172 | BK25: 50363.31028 | BL25: 7174.622123 | BM25: 0 | BN25: 0.4 | BO25: 0.021905227
AV26: 0.6 | AW26: 49 | AX26: 0.002208726376 | AY26: 0.002 | AZ26: 0.5 | BA26: 0.01852021464 | BB26: 0.006 | BC26: 6 | BD26: 6 | BE26: 0.00268380444 | BF26: 0.002 | BG26: 1.5 | BH26: 0.1586383376 | BI26: 0.006 | BJ26: 5777.793172 | BK26: 45657.5213 | BL26: 7390.878356 | BM26: 0 | BN26: 0.5 | BO26: 0.02791037562
AV27: 0.7 | AW27: 48 | AX27: 0.002263851104 | AY27: 0.002 | AZ27: 0.6 | BA27: 0.02092988513 | BB27: 0.006 | BC27: 7 | BD27: 7 | BE27: 0.003737986666 | BF27: 0.002 | BG27: 1.75 | BH27: 0.1771236132 | BI27: 0.006 | BJ27: 5838.201851 | BK27: 44036.28956 | BL27: 7390.878356 | BM27: 0 | BN27: 0.6 | BO27: 0.03571487604
AV28: 0.8 | AW28: 47 | AX28: 0.002332840006 | AY28: 0.002 | AZ28: 0.7 | BA28: 0.02371272459 | BB28: 0.006 | BC28: 8 | BD28: 8 | BE28: 0.005669166168 | BF28: 0.002 | BG28: 2 | BH28: 0.1904769267 | BI28: 0.006 | BJ28: 5838.201851 | BK28: 40233.34831 | BL28: 7603.805398 | BM28: 0 | BN28: 0.7 | BO28: 0.04567456479
AV29: 0.9 | AW29: 46 | AX29: 0.002418955814 | AY29: 0.002 | AZ29: 0.8 | BA29: 0.02690732574 | BB29: 0.006 | BC29: 9 | BD29: 9 | BE29: 0.008722541621 | BF29: 0.002 | BG29: 2.25 | BH29: 0.1990097559 | BI29: 0.006 | BJ29: 5869.764275 | BK29: 30646.30374 | BL29: 7603.805398 | BM29: 0 | BN29: 0.8 | BO29: 0.05815123157
AV30: 1 | AW30: 45 | AX30: 0.002526157207 | AY30: 0.002 | AZ30: 0.9 | BA30: 0.03055250528 | BB30: 0.006 | BC30: 10 | BD30: 10 | BE30: 0.01301398123 | BF30: 0.002 | BG30: 2.5 | BH30: 0.2032267905 | BI30: 0.2032267905 | BJ30: 5869.764275 | BK30: 30133.48987 | BL30: 7629.582019 | BM30: 0 | BN30: 0.9 | BO30: 0.07348870814
AV31: 1.1 | AW31: 44 | AX31: 0.002659224185 | AY31: 0.002 | AZ31: 1 | BA31: 0.03468648603 | BB31: 0.006 | BC31: 11 | BD31: 11 | BE31: 0.01848435337 | BF31: 0.002 | BG31: 2.75 | BH31: 0.2037240161 | BI31: =IF(IF($BI$19>0,IF(BH31=$BI$19,$BI$19,0),IF($BG$21=$I$94,BH31, AND($I$94>=BG30,$I$94<BG31))),BH31,0.006) -> 0.006 | BJ31: 6093.225087 | BK31: 28870.76611 | BL31: 7629.582019 | BM31: 0 | BN31: 1 | BO31: 0.09198284478
N32: =IF(OR(I32="",I37=""),"",I32/I37) ->  | Q32: =IF(N32="","",IF(N32=0,"0%",IF(AND(N32>=2,N32<=3),"0%",IF(N32<2,ABS(N32-2)/2.5,ABS(N32-3)/2.5)))) ->  | AV32: 1.2 | AW32: 43 | AX32: 0.002823898475 | AY32: 0.002 | AZ32: 1.1 | BA32: 0.03934595067 | BB32: 0.006 | BC32: 12 | BD32: 12 | BE32: 0.02489614576 | BF32: 0.002 | BG32: 3 | BH32: 0.2011214896 | BI32: 0.006 | BJ32: 6093.225087 | BK32: 18723.63654 | BL32: 7773.356472 | BM32: 0 | BN32: 1.1 | BO32: 0.1138466485
AV33: 1.3 | AW33: 42 | AX33: 0.003027038049 | AY33: 0.002 | AZ33: 1.2 | BA33: 0.04456497608 | BB33: 0.006 | BC33: 13 | BD33: 13 | BE33: 0.03186859229 | BF33: 0.002 | BG33: 3.25 | BH33: 0.1960205272 | BI33: 0.006 | BJ33: 6268.509565 | BK33: 16991.39774 | BL33: 7773.356472 | BM33: 0 | BN33: 1.2 | BO33: 0.1391728352
AV34: 1.4 | AW34: 41 | AX34: 0.003276783551 | AY34: 0.002 | AZ34: 1.3 | BA34: 0.0503738633 | BB34: 0.006 | BC34: 14 | BD34: 14 | BE34: 0.03893774021 | BF34: 0.002 | BG34: 3.5 | BH34: 0.1889779809 | BI34: 0.006 | BJ34: 6268.509565 | BK34: 12655.63992 | BL34: 7843.933107 | BM34: 0 | BN34: 1.3 | BO34: 0.1678969946
AV35: 1.5 | AW35: 40 | AX35: 0.003582732617 | AY35: 0.002 | AZ35: 1.4 | BA35: 0.05679788466 | BB35: 0.006 | BC35: 15 | BD35: 15 | BE35: 0.04562472981 | BF35: 0.002 | BG35: 3.75 | BH35: 0.1804923411 | BI35: 0.006 | BJ35: 6473.98761 | BK35: 12376.04424 | BL35: 7843.933107 | BM35: 0 | BN35: 1.4 | BO35: 0.1997653318
AV36: 1.6 | AW36: 39 | AX36: 0.003956115683 | AY36: 0.002 | AZ36: 1.5 | BA36: 0.06385597624 | BB36: 0.006 | BC36: 16 | BD36: 16 | BE36: 0.05149766133 | BF36: 0.002 | BG36: 4 | BH36: 0.1709978777 | BI36: 0.006 | BJ36: 6473.98761 | BK36: 11367.85716 | BL36: 8098.927536 | BM36: 0 | BN36: 1.5 | BO36: 0.2343113567
AV37: 1.7 | AW37: 38 | AX37: 0.004409963762 | AY37: 0.002 | AZ37: 1.6 | BA37: 0.07155940997 | BB37: 0.006 | BC37: 17 | BD37: 17 | BE37: 0.05621738234 | BF37: 0.002 | BG37: 4.25 | BH37: 0.160864101 | BI37: 0.006 | BJ37: 6732.979468 | BK37: 6438.038449 | BL37: 8098.927536 | BM37: 0 | BN37: 1.6 | BO37: 0.2708458072
AV38: 1.8 | AW38: 37 | AX38: 0.004959254736 | AY38: 0.002 | AZ38: 1.7 | BA38: 0.07991048607 | BB38: 0.006 | BC38: 18 | BD38: 18 | BE38: 0.05956310559 | BF38: 0.002 | BG38: 4.5 | BH38: 0.1503985987 | BI38: 0.006 | BJ38: 6732.979468 | BK38: 5867.920382 | BL38: 8157.923733 | BM38: 0 | BN38: 1.7 | BO38: 0.3084634056
AV39: 1.9 | AW39: 36 | AX39: 0.00562101986 | AY39: 0.002 | AZ39: 1.8 | BA39: 0.08890129072 | BB39: 0.006 | BC39: 19 | BD39: 19 | BE39: 0.06143845286 | BF39: 0.002 | BG39: 4.75 | BH39: 0.1398518798 | BI39: 0.006 | BJ39: 6877.301661 | BK39: 5317.459722 | BL39: 8157.923733 | BM39: 0 | BN39: 1.8 | BO39: 0.346068748
AV40: 2 | AW40: 35 | AX40: 0.006414386381 | AY40: 0.002 | AZ40: 1.9 | BA40: 0.09851256833 | BB40: 0.006 | BC40: 20 | BD40: 20 | BE40: 0.06186162007 | BF40: 0.06186162007 | BG40: 5 | BH40: 0.1294232672 | BI40: 0.006 | BJ40: 6877.301661 | BK40: 5023.466369 | BL40: 8283.717957 | BM40: 0 | BN40: 1.9 | BO40: 0.3824217902
AV41: 2.1 | AW41: 34 | AX41: 0.007360525416 | AY41: 0.002 | AZ41: 2 | BA41: 0.1087127591 | BB41: 0.006 | BC41: 21 | BD41: 21 | BE41: 0.06094481041 | BF41: =IF(IF($BF$19>0,IF(BE41=$BF$19,$BF$19,0),IF(BC41=$I$84*100,BE41, AND($I$84*100>=BC40,$I$84*100<BC41))),BE41,0.002) -> 0.002 | BG41: 5.25 | BH41: 0.1192671885 | BI41: 0.006 | BJ41: 7098.498524 | BK41: 4955.569345 | BL41: 8283.717957 | BM41: 0 | BN41: 2 | BO41: 0.4162012107
AV42: 2.2 | AW42: 33 | AX42: 0.008482466729 | AY42: 0.002 | AZ42: 2.1 | BA42: 0.1194572532 | BB42: 0.006 | BC42: 22 | BD42: 22 | BE42: 0.05886819806 | BF42: 0.002 | BG42: 5.5 | BH42: 0.1094994325 | BI42: 0.006 | BJ42: 7098.498524 | BK42: 4756.061594 | BL42: 8293.37085 | BM42: 0 | BN42: 2.1 | BO42: 0.4460816585
AV43: 2.3 | AW43: 32 | AX43: 0.009804734039 | AY43: 0.002 | AZ43: 2.2 | BA43: 0.1306879102 | BB43: 0.006 | BC43: 23 | BD43: 23 | BE43: 0.05585292308 | BF43: 0.002 | BG43: 5.75 | BH43: 0.1002030962 | BI43: 0.006 | BJ43: 7113.202803 | BK43: 4238.007774 | BL43: 8293.37085 | BM43: 0 | BN43: 2.2 | BO43: 0.4708188673
AV44: 2.4 | AW44: 31 | AX44: 0.01135274665 | AY44: 0.002 | AZ44: 2.3 | BA44: 0.1423328894 | BB44: 0.006 | BC44: 24 | BD44: 24 | BE44: 0.05213642347 | BF44: 0.002 | BG44: 6 | BH44: 0.09143406325 | BI44: 0.006 | BJ44: 7113.202803 | BK44: 4046.699068 | BL44: 8483.433223 | BM44: 0 | BN44: 2.3 | BO44: 0.489335146
AV45: 2.5 | AW45: 30 | AX45: 0.01315192627 | AY45: 0.002 | AZ45: 2.4 | BA45: 0.1543068272 | BB45: 0.006 | BC45: 25 | BD45: 25 | BE45: 0.04795213243 | BF45: 0.002 | BG45: 6.25 | BH45: 0.08322592752 | BI45: 0.006 | BJ45: 7174.622123 | BK45: 4017.59327 | BL45: 8483.433223 | BM45: 0 | BN45: 2.4 | BO45: 0.5007971087
AV46: 2.6 | AW46: 29 | AX46: 0.01522644359 | AY46: 0.002 | AZ46: 2.5 | BA46: 0.1665113919 | BB46: 0.006 | BC46: 26 | BD46: 26 | BE46: 0.04351443588 | BF46: 0.002 | BG46: 6.5 | BH46: 0.07559433538 | BI46: 0.006 | BJ46: 7174.622123 | BK46: 3489.233031 | BL46: 8574.080248 | BM46: 0 | BN46: 2.5 | BO46: 0.5046778505 | BP46: 0.5046778505
AV47: 2.7 | AW47: 28 | AX47: 0.0175975387 | AY47: 0.002 | AZ47: 2.6 | BA47: 0.1788362318 | BB47: 0.006 | BC47: 27 | BD47: 27 | BE47: 0.03900891082 | BF47: 0.002 | BG47: 6.75 | BH47: 0.06854075163 | BI47: 0.006 | BJ47: 7390.878356 | BK47: 3142.728096 | BL47: 8574.080248 | BM47: 0 | BN47: 2.6 | BO47: 0.5007971087 | BP47: =IF(ROUNDDOWN($N$32,1)=BN47,BO47,0.006) -> 
AV48: 2.8 | AW48: 27 | AX48: 0.02028135646 | AY48: 0.002 | AZ48: 2.7 | BA48: 0.1911603229 | BB48: 0.006 | BC48: 28 | BD48: 28 | BE48: 0.03458728102 | BF48: =IF(IF($BF$19>0,IF(BE48=$BF$19,$BF$19,0),IF(BC48=$I$84*100,BE48, AND($I$84*100>=BC47,$I$84*100<BC48))),BE48,0.002) -> 0.002 | BG48: 7 | BH48: 0.06205567906 | BI48: 0.006 | BJ48: 7390.878356 | BK48: 2868.021296 | BL48: 8706.204819 | BM48: 0 | BN48: 2.7 | BO48: 0.489335146
AV49: 2.9 | AW49: 26 | AX49: 0.02328625431 | AY49: 0.002 | AZ49: 2.8 | BA49: 0.203353704 | BB49: 0.006 | BC49: 29 | BD49: 29 | BE49: 0.03036620533 | BF49: =IF(IF($BF$19>0,IF(BE49=$BF$19,$BF$19,0),IF(BC49=$I$84*100,BE49, AND($I$84*100>=BC48,$I$84*100<BC49))),BE49,0.002) -> 0.002 | BG49: 7.25 | BH49: 0.05612137405 | BI49: 0.006 | BJ49: 7603.805398 | BK49: 2450.964587 | BL49: 8706.204819 | BM49: 0 | BN49: 2.8 | BO49: 0.4708188673
AV50: 3 | AW50: 25 | AX50: 0.02660957111 | AY50: 0.002 | AZ50: 2.9 | BA50: 0.2152795755 | BB50: 0.006 | BC50: 30 | BD50: 30 | BE50: 0.02642890333 | BF50: 0.002 | BG50: 7.5 | BH50: 0.05071410788 | BI50: 0.006 | BJ50: 7603.805398 | BK50: 2342.599594 | BL50: 8832.808456 | BM50: 0 | BN50: 2.9 | BO50: 0.4460816585
AV51: 3.1 | AW51: 24 | AX51: 0.03023389472 | AY51: 0.002 | AZ51: 3 | BA51: 0.226796722 | BB51: 0.006 | BC51: 31 | BD51: 31 | BE51: 0.02282866045 | BF51: 0.002 | BG51: 7.75 | BH51: 0.04580602566 | BI51: 0.006 | BJ51: 7629.582019 | BK51: 2171.323234 | BL51: 8832.808456 | BM51: 0 | BN51: 3 | BO51: 0.4162012107
AV52: 3.2 | AW52: 23 | AX52: 0.03412293884 | AY52: 0.002 | AZ52: 3.1 | BA52: 0.2377622023 | BB52: 0.006 | BC52: 32 | BD52: 32 | BE52: 0.01959338141 | BF52: 0.002 | BG52: 8 | BH52: 0.04136665395 | BI52: 0.006 | BJ52: 7629.582019 | BK52: 1991.205825 | BL52: 8978.979931 | BM52: 0 | BN52: 3.1 | BO52: 0.3824217902
I53: =IF(I23="","",I23*I43) ->  | N53: =IF(N23="","",N23*N43) ->  | Q53: =IF(ISERROR(((N53/I53)-1))=TRUE,"",((N53/I53)-1)) ->  | AV53: 3.3 | AW53: 22 | AX53: 0.03821724019 | AY53: 0.002 | AZ53: 3.2 | BA53: 0.2480342398 | BB53: 0.006 | BC53: 33 | BD53: 33 | BE53: 0.01673053055 | BF53: 0.002 | BG53: 8.25 | BH53: 0.03736410607 | BI53: 0.006 | BJ53: 7773.356472 | BK53: 1987.700603 | BL53: 8978.979931 | BM53: 0 | BN53: 3.2 | BO53: 0.346068748
AV54: 3.4 | AW54: 21 | AX54: 0.04243001732 | AY54: 0.002 | AZ54: 3.3 | BA54: 0.2574752334 | BB54: 0.006 | BC54: 34 | BD54: 34 | BE54: 0.01423197546 | BF54: 0.002 | BG54: 8.5 | BH54: 0.03376602974 | BI54: 0.006 | BJ54: 7773.356472 | BK54: 1748.919253 | BL54: 9097.056517 | BM54: 0 | BN54: 3.3 | BO54: 0.3084634056
AV55: 3.5 | AW55: 20 | AX55: 0.04664369363 | AY55: 0.002 | AZ55: 3.4 | BA55: 0.2659548012 | BB55: 0.006 | BC55: 35 | BD55: 35 | BE55: 0.0120784133 | BF55: 0.002 | BG55: 8.75 | BH55: 0.03054033802 | BI55: 0.006 | BJ55: 7843.933107 | BK55: 1626.985152 | BL55: 9097.056517 | BM55: 0 | BN55: 3.4 | BO55: 0.2708458072
AV56: 3.6 | AW56: 19 | AX56: 0.05070777058 | AY56: 0.002 | AZ56: 3.5 | BA56: 0.2733527638 | BB56: 0.006 | BC56: 36 | BD56: 36 | BE56: 0.01024319719 | BF56: 0.002 | BG56: 9 | BH56: 0.02765575959 | BI56: 0.006 | BJ56: 7843.933107 | BK56: 1620.276467 | BL56: 9110.036904 | BM56: 0 | BN56: 3.5 | BO56: 0.2343113567
AV57: 3.7 | AW57: 18 | AX57: 0.05443892971 | AY57: 0.002 | AZ57: 3.6 | BA57: 0.2795619714 | BB57: 0.006 | BC57: 37 | BD57: 37 | BE57: 0.008695486153 | BF57: 0.002 | BG57: 9.25 | BH57: 0.02508224026 | BI57: 0.006 | BJ57: 8098.927536 | BK57: 1560.147258 | BL57: 9110.036904 | BM57: 0 | BN57: 3.6 | BO57: 0.1997653318
A58: CUSTOMER COVERAGE | AV58: 3.8 | AW58: 17 | AX58: 0.05762441345 | AY58: 0.002 | AZ58: 3.7 | BA58: 0.2844908838 | BB58: 0.006 | BC58: 38 | BD58: 38 | BE58: 0.007402719079 | BF58: 0.002 | BG58: 9.5 | BH58: 0.02279122308 | BI58: 0.006 | BJ58: 8098.927536 | BK58: 1485.079943 | BL58: 9306.154892 | BM58: 0 | BN58: 3.7 | BO58: 0.1678969946
AV59: 3.9 | AW59: 16 | AX59: 0.06002983903 | AY59: 0.002 | AZ59: 3.8 | BA59: 0.2880658142 | BB59: 0.006 | BC59: 39 | BD59: 39 | BE59: 0.00633246335 | BF59: 0.002 | BG59: 9.75 | BH59: 0.02075583075 | BI59: 0.006 | BJ59: 8157.923733 | BK59: 1236.152098 | BL59: 9306.154892 | BM59: 0 | BN59: 3.8 | BO59: 0.1391728352
N60: =IF(AND(J61="YES",J63="YES"),"0%",IF(AND(J61="NO",J63="NO"),"100%",IF(AND(J61="",J63=""),"","50%"))) ->  | AV60: 4 | AW60: 15 | AX60: 0.06141256739 | AY60: 0.06141256739 | AZ60: 3.9 | BA60: 0.2902327625 | BB60: 0.006 | BC60: 40 | BD60: 40 | BE60: 0.005453717201 | BF60: 0.002 | BG60: 10 | BH60: 0.01895097036 | BI60: 0.006 | BJ60: 8157.923733 | BK60: 1159.642351 | BL60: 9453.447065 | BM60: 0 | BN60: 3.9 | BO60: 0.1138466485
AV61: 4.1 | AW61: 14 | AX61: 0.06154148678 | AY61: =IF(IF($AY$19>0,IF(AX61=$AY$19,$AY$19,0),IF(AV61=$I$23/1000000,AX61, AND(($I$23/1000000)>=AV60,($I$23/1000000)<AV61))),AX61,0.002) -> 0.002 | AZ61: 4 | BA61: 0.2909587717 | BB61: 0.2909587717 | BC61: 41 | BD61: 41 | BE61: 0.004737757513 | BF61: 0.002 | BG61: 10.25 | BH61: 0.01735337722 | BI61: 0.006 | BJ61: 8283.717957 | BK61: 1046.474301 | BL61: 9453.447065 | BM61: 0 | BN61: 4 | BO61: 0.09198284478
AV62: 4.2 | AW62: 13 | AX62: 0.06022346158 | AY62: 0.002 | AZ62: 4.1 | BA62: 0.2902327625 | BB62: =IF(ROUNDDOWN($I$43,1)=AZ62,BA62,0.006) -> 0.006 | BC62: 42 | BD62: 42 | BE62: 0.004158625483 | BF62: 0.002 | BG62: 10.5 | BH62: 0.01594161191 | BI62: 0.006 | BJ62: 8283.717957 | BK62: 859.825991 | BL62: 9499.22754 | BM62: 0 | BN62: 4.1 | BO62: 0.07348870814
AV63: 4.3 | AW63: 12 | AX63: 0.05733561478 | AY63: 0.002 | AZ63: 4.2 | BA63: 0.2880658142 | BB63: 0.006 | BC63: 43 | BD63: 43 | BE63: 0.003693336243 | BF63: 0.002 | BG63: 10.75 | BH63: 0.01469602207 | BI63: 0.006 | BJ63: 8293.37085 | BK63: 687.7313927 | BL63: 9499.22754 | BM63: 0 | BN63: 4.2 | BO63: 0.05815123157
AV64: 4.4 | AW64: 11 | AX64: 0.05286095077 | AY64: 0.002 | AZ64: 4.3 | BA64: 0.2844908838 | BB64: 0.006 | BC64: 44 | BD64: 44 | BE64: 0.003321887845 | BF64: 0.002 | BG64: 11 | BH64: 0.01359867845 | BI64: 0.006 | BJ64: 8293.37085 | BK64: 573.8630595 | BL64: 9583.02556 | BM64: 0 | BN64: 4.3 | BO64: 0.04567456479
AV65: 4.5 | AW65: 10 | AX65: 0.04692255126 | AY65: 0.002 | AZ65: 4.4 | BA65: 0.2795619714 | BB65: 0.006 | BC65: 45 | BD65: 45 | BE65: 0.003027132715 | BF65: 0.002 | BG65: 11.25 | BH65: 0.01263329286 | BI65: 0.006 | BJ65: 8483.433223 | BK65: 445.4334027 | BL65: 9583.02556 | BM65: 0 | BN65: 4.4 | BO65: 0.03571487604
N66: =IF(UPPER(J67)="YES","0%",IF(J67="","","100%")) ->  | AV66: 4.6 | AW66: 9 | AX66: 0.03980883412 | AY66: 0.002 | AZ66: 4.5 | BA66: 0.2733527638 | BB66: 0.006 | BC66: 46 | BD66: 46 | BE66: 0.002794562091 | BF66: 0.002 | BG66: 11.5 | BH66: 0.01178512423 | BI66: 0.006 | BJ66: 8483.433223 | BK66: 321.6202868 | BL66: 9875.238872 | BM66: 0 | BN66: 4.5 | BO66: 0.02791037562
AV67: 4.7 | AW67: 8 | AX67: 0.03197961181 | AY67: 0.002 | AZ67: 4.6 | BA67: 0.2659548012 | BB67: 0.006 | BC67: 47 | BD67: 47 | BE67: 0.002612042378 | BF67: 0.002 | BG67: 11.75 | BH67: 0.01104087761 | BI67: 0.006 | BJ67: 8574.080248 | BK67: 319.5993608 | BL67: 9875.238872 | BM67: 0 | BN67: 4.6 | BO67: 0.021905227
AV68: 4.8 | AW68: 7 | AX68: 0.02404090826 | AY68: 0.002 | AZ68: 4.7 | BA68: 0.2574752334 | BB68: 0.006 | BC68: 48 | BD68: 48 | BE68: 0.002469532141 | BF68: 0.002 | BG68: 12 | BH68: 0.0103885999 | BI68: 0.006 | BJ68: 8574.080248 | BK68: 314.7418715 | BL68: 9944.784273 | BM68: 0 | BN68: 4.7 | BO68: 0.01736695313
AV69: 4.9 | AW69: 6 | AX69: 0.01667742007 | AY69: 0.002 | AZ69: 4.8 | BA69: 0.2480342398 | BB69: 0.006 | BC69: 49 | BD69: 49 | BE69: 0.002358799912 | BF69: 0.002 | BG69: 12.25 | BH69: 0.009817575223 | BI69: 0.006 | BJ69: 8706.204819 | BK69: 166.5798681 | BL69: 9944.784273 | BM69: 0 | BN69: 4.8 | BO69: 0.01399765039
AV70: 5 | AW70: 5 | AX70: 0.01053777234 | AY70: 0.002 | AZ70: 4.9 | BA70: 0.2377622023 | BB70: 0.006 | BC70: 50 | BD70: 50 | BE70: 0.002273156201 | BF70: 0.002 | BG70: 12.5 | BH70: 0.009318222268 | BI70: 0.006 | BJ70: 8706.204819 | BK70: 152.1745858 | BL70: 10150.42277 | BM70: 0 | BN70: 4.9 | BO70: 0.01153981051
AV71: 5.1 | AW71: 0 | AX71: 0.002 | AY71: 0.002 | AZ71: 5 | BA71: 0.226796722 | BB71: 0.006 | BG71: 12.75 | BH71: 0.008881994939 | BI71: 0.006 | BJ71: 8832.808456 | BK71: 124.3535518 | BL71: 10150.42277 | BM71: 0 | BN71: 5 | BO71: 0.009777822544
AV72: 5.2 | AW72: 0 | AX72: 0.002 | AY72: 0.002 | AZ72: 5.1 | BA72: 0.2152795755 | BB72: 0.006 | BG72: 13 | BH72: 0.008501287692 | BI72: 0.006 | BJ72: 8832.808456 | BK72: 350.8951696 | BL72: 10198.99479 | BM72: 0 | BN72: 5.1 | BO72: 0.008536310072
AV73: 5.3 | AW73: 0 | AX73: 0.002 | AY73: 0.002 | AZ73: 5.2 | BA73: 0.203353704 | BB73: 0.006 | BJ73: 8978.979931 | BK73: 289.1050382 | BL73: 10198.99479 | BM73: 0 | BN73: 5.2 | BO73: 0.007676398592
AV74: 5.4 | AW74: 0 | AX74: 0.002 | AY74: 0.002 | AZ74: 5.3 | BA74: 0.1911603229 | BB74: 0.006 | BJ74: 8978.979931 | BK74: 207.6872536 | BL74: 10217.78771 | BM74: 0 | BN74: 5.3 | BO74: 0.007090853369
AV75: 5.5 | AW75: 0 | AX75: 0.002 | AY75: 0.002 | AZ75: 5.4 | BA75: 0.1788362318 | BB75: 0.006 | BJ75: 9097.056517 | BK75: 15014.17808 | BL75: 10217.78771 | BM75: 0 | BN75: 5.4 | BO75: 0.006698826903
AZ76: 5.5 | BA76: 0.1665113919 | BB76: 0.006 | BJ76: 9097.056517 | BK76: 184.3191074 | BL76: 10399.37555 | BM76: 0 | BN76: 5.5 | BO76: 0.006440744603
N77: =IF(AND(J73="YES",J79="YES"),"0%",IF(AND(J73="NO",J79="NO"),"100%",IF(AND(J73="PARTLY",J79="PARTLY"),"50%",IF(AND(J73="PARTLY",J79="YES"),"25%",IF(AND(J73="PARTLY",J79="NO"),"75%",IF(AND(J73="YES",J79="PARTLY"),"25%",IF(AND(J73="NO",J79="PARTLY"),"75%",IF(AND(J73="",J79=""),"","50%")))))))) ->  | AZ77: 5.6 | BA77: 0.1543068272 | BB77: 0.006 | BJ77: 9110.036904 | BK77: 835.5063731 | BL77: 10399.37555 | BM77: 0
AZ78: 5.7 | BA78: 0.1423328894 | BB78: 0.006 | BJ78: 9110.036904 | BK78: 6257.277377 | BL78: 10554.42163 | BM78: 0
AZ79: 5.8 | BA79: 0.1306879102 | BB79: 0.006 | BJ79: 9306.154892 | BK79: 74108.87529 | BL79: 10554.42163 | BM79: 0
AZ80: 5.9 | BA80: 0.1194572532 | BB80: 0.006 | BJ80: 9306.154892 | BK80: 390.8341478 | BL80: 10701.50092 | BM80: 0
AZ81: 6 | BA81: 0.1087127591 | BB81: 0.006 | BJ81: 9453.447065 | BK81: 2400.861472 | BL81: 10701.50092 | BM81: 0
AZ82: 6.1 | BA82: 0.09851256833 | BB82: 0.006 | BJ82: 9453.447065 | BK82: 4824.253985 | BL82: 11024.84804 | BM82: 0
AZ83: 6.2 | BA83: 0.08890129072 | BB83: 0.006 | BJ83: 9499.22754 | BK83: 208.8172866 | BL83: 11024.84804 | BM83: 0
Q84: =IF(I84="","",(IF(AND(I84>=25%,I84<=35%),"0%",IF(AND(I84<25%,I84>0),ABS(I84-25%)/30%,ABS(I84-35%)/30%)))) ->  | AZ84: 6.3 | BA84: 0.07991048607 | BB84: 0.006 | BJ84: 9499.22754 | BK84: 823.0535108 | BL84: 11166.07041 | BM84: 0
AZ85: 6.4 | BA85: 0.07155940997 | BB85: 0.006 | BJ85: 9583.02556 | BK85: 3661.470845 | BL85: 11166.07041 | BM85: 0
AZ86: 6.5 | BA86: =NORMDIST(AZ86,$BA$20,$BB$20,0)+0.006 -> 0.06385597624 | BB86: 0.006 | BJ86: 9583.02556 | BK86: 6132.789224 | BL86: 11718.72393 | BM86: 0
AZ87: 6.6 | BA87: 0.05679788466 | BB87: 0.006 | BJ87: 9875.238872 | BK87: 10570.30937 | BL87: 11718.72393 | BM87: 0
AZ88: 6.7 | BA88: 0.0503738633 | BB88: 0.006 | BJ88: 9875.238872 | BK88: 493.657888 | BL88: 11988.96448 | BM88: 0
AZ89: 6.8 | BA89: 0.04456497608 | BB89: 0.006 | BJ89: 9944.784273 | BK89: 371.1006237 | BL89: 11988.96448 | BM89: 0
AZ90: 6.9 | BA90: 0.03934595067 | BB90: 0.006 | BJ90: 9944.784273 | BK90: 1482.008305 | BL90: 11996.15582 | BM90: 0
AZ91: 7 | BA91: 0.03468648603 | BB91: 0.006 | BJ91: 10150.42277 | BK91: 41824.37391 | BL91: 11996.15582 | BM91: 0
AZ92: 7.1 | BA92: 0.03055250528 | BB92: 0.006 | BJ92: 10150.42277 | BK92: 41956.24328 | BL92: 12060.08582 | BM92: 0
AZ93: 7.2 | BA93: 0.02690732574 | BB93: 0.006 | BJ93: 10198.99479 | BK93: 13111.20754 | BL93: 12060.08582 | BM93: 0
Q94: =IF(I94="","",IF(AND(I94>=2,I94<3),"0%",IF(I94>2,ABS(I94-2)/2.5,ABS(I94-3)/2.5))) ->  | T94: =IF(ISERROR(((N77*40%)+(N60*20%)+(N66*10%)+(Q84*15%)+(Q94*15%))/(40%+20%+10%+15%+15%))=TRUE,0,((N77*40%)+(N60*20%)+(N66*10%)+(Q84*15%)+(Q94*15%))/(40%+20%+10%+15%+15%)) -> 0 | AZ94: 7.3 | BA94: 0.02371272459 | BB94: 0.006 | BJ94: 10198.99479 | BK94: 28622.09707 | BL94: 12087.7985 | BM94: 0
AZ95: 7.4 | BA95: 0.02092988513 | BB95: 0.006 | BJ95: 10217.78771 | BK95: 1072.445674 | BL95: 12087.7985 | BM95: 0
AZ96: 7.5 | BA96: 0.01852021464 | BB96: 0.006 | BJ96: 10217.78771 | BK96: 2790.377283 | BL96: 12554.38174 | BM96: 0
AZ97: 7.6 | BA97: 0.01644603061 | BB97: 0.006 | BJ97: 10399.37555 | BK97: 810.6732899 | BL97: 12554.38174 | BM97: 0
AZ98: 7.7 | BA98: 0.01467111659 | BB98: 0.006 | BJ98: 10399.37555 | BK98: 5311.524094 | BL98: 13345.69451 | BM98: 0
AZ99: 7.8 | BA99: 0.01316115327 | BB99: 0.006 | BJ99: 10554.42163 | BK99: 419.5723375 | BL99: 13345.69451 | BM99: 0
AZ100: 7.9 | BA100: 0.01188403334 | BB100: 0.006 | BJ100: 10554.42163 | BK100: 4858.226769 | BL100: 13346.90894 | BM100: 0
AZ101: 8 | BA101: 0.01081007105 | BB101: 0.006 | BJ101: 10701.50092 | BK101: 1601.844668 | BL101: 13346.90894 | BM101: 0
AZ102: 8.1 | BA102: 0.009912119126 | BB102: 0.006 | BJ102: 10701.50092 | BK102: 446.4305451 | BL102: 13442.65373 | BM102: 0
A103: PROSPECT PENETRATION | AZ103: 8.2 | BA103: 0.009165606009 | BB103: 0.006 | BJ103: 11024.84804 | BK103: 6820.978255 | BL103: 13442.65373 | BM103: 0
AZ104: 8.3 | BA104: 0.008548507196 | BB104: 0.006 | BJ104: 11024.84804 | BK104: 3465.175585 | BL104: 13727.21786 | BM104: 0
AZ105: 8.4 | BA105: 0.008041263541 | BB105: 0.006 | BJ105: 11166.07041 | BK105: 3664.034695 | BL105: 13727.21786 | BM105: 0
AZ106: 8.5 | BA106: 0.007626658942 | BB106: 0.006 | BJ106: 11166.07041 | BK106: 5387.19944 | BL106: 13908.77654 | BM106: 0
AZ107: 8.6 | BA107: 0.007289668651 | BB107: 0.006 | BJ107: 11718.72393 | BK107: 632.3785721 | BL107: 13908.77654 | BM107: 0
AZ108: 8.7 | BA108: 0.007017288168 | BB108: 0.006 | BJ108: 11718.72393 | BK108: 35603.5629 | BL108: 14286.63439 | BM108: 0
AZ109: 8.8 | BA109: 0.006798351333 | BB109: 0.006 | BJ109: 11988.96448 | BK109: 6581.097936 | BL109: 14286.63439 | BM109: 0
AZ110: 8.9 | BA110: 0.006623344782 | BB110: 0.006 | BJ110: 11988.96448 | BK110: 1943.916993 | BL110: 14582.56051 | BM110: 0
AZ111: 9 | BA111: 0.006484224561 | BB111: 0.006 | BJ111: 11996.15582 | BK111: 2792.20134 | BL111: 14582.56051 | BM111: 0
N112: =IF(AND(J108="YES",J114="YES"),"0%",IF(AND(J108="NO",J114="NO"),"100%",IF(AND(J108="PARTLY",J114="PARTLY"),"50%",IF(AND(J108="PARTLY",J114="NO"),"75%",IF(AND(J108="PARTLY",J114="YES"),"25%",IF(AND(J108="YES",J114="PARTLY"),"25%",IF(AND(J108="NO",J114="PARTLY"),"75%",IF(AND(J108="",J114=""),0,"50%")))))))) -> 0 | BJ112: 11996.15582 | BK112: 1317.488213 | BL112: 14821.37828 | BM112: 0
BJ113: 12060.08582 | BK113: 2653.083828 | BL113: 14821.37828 | BM113: 0
BJ114: 12060.08582 | BK114: 9030.407438 | BL114: 14926.38661 | BM114: 0
AW115: 3 | AX115: 3 | AY115: 3 | AZ115: 3 | BA115: 4 | BJ115: 12087.7985 | BK115: 16374.81732 | BL115: 14926.38661 | BM115: 0
BJ116: 12087.7985 | BK116: 1777.168397 | BL116: 15027.64773 | BM116: 0
BJ117: 12554.38174 | BK117: 2989.234094 | BL117: 15027.64773 | BM117: 0
BJ118: 12554.38174 | BK118: 9896.939767 | BL118: 15243.59584 | BM118: 0
BJ119: 13345.69451 | BK119: 6381.303047 | BL119: 15243.59584 | BM119: 0
BJ120: 13345.69451 | BK120: 3482.732941 | BL120: 15479.31488 | BM120: 0
BJ121: 13346.90894 | BK121: 5077.890553 | BL121: 15479.31488 | BM121: 0
BJ122: 13346.90894 | BK122: 1728.652505 | BL122: 15558.82555 | BM122: 0
BJ123: 13442.65373 | BK123: 32404.16682 | BL123: 15558.82555 | BM123: 0
BJ124: 13442.65373 | BK124: 1912.913887 | BL124: 15838.16124 | BM124: 0
BJ125: 13727.21786 | BK125: 5628.144911 | BL125: 15838.16124 | BM125: 0
BJ126: 13727.21786 | BK126: 1352.275233 | BL126: 15973.1035 | BM126: 0
AW127: 1 | BJ127: 13908.77654 | BK127: 5683.026159 | BL127: 15973.1035 | BM127: 0
AW128: 2 | BJ128: 13908.77654 | BK128: 16340.33661 | BL128: 16246.49885 | BM128: 0
AW129: 3 | BJ129: 14286.63439 | BK129: 1630.186996 | BL129: 16246.49885 | BM129: 0
AW130: 4 | BJ130: 14286.63439 | BK130: 3282.039274 | BL130: 16299.65548 | BM130: 0
AW131: 5 | BJ131: 14582.56051 | BK131: 10670.39439 | BL131: 16299.65548 | BM131: 0
Q132: =IF(AND(I132="",N132=""),"0%",IF(OR(I132="",I132=0),N132/0.01-1,N132/I132-1)) -> 0% | AW132: 6 | BJ132: 14582.56051 | BK132: 64246.63419 | BL132: 16654.88383 | BM132: 0
BJ133: 14821.37828 | BK133: 1877.002441 | BL133: 16654.88383 | BM133: 0
BJ134: 14821.37828 | BK134: 6068.144074 | BL134: 16870.72032 | BM134: 0
AW135: 0.3 | AX135: 3000 | BJ135: 14926.38661 | BK135: 39482.74649 | BL135: 16870.72032 | BM135: 0
AW136: 0.23 | AX136: 10011 | BJ136: 14926.38661 | BK136: 19232.65995 | BL136: 16877.2059 | BM136: 0
AW137: 0.2 | AX137: 12000 | BJ137: 15027.64773 | BK137: 2044.507273 | BL137: 16877.2059 | BM137: 0
AW138: 0.35 | AX138: 8000 | BJ138: 15027.64773 | BK138: 20265.71358 | BL138: 16963.21785 | BM138: 0
AW139: 0.18 | AX139: 2000 | BJ139: 15243.59584 | BK139: 33426.69954 | BL139: 16963.21785 | BM139: 0
AW140: 0.05 | AX140: 18000 | BJ140: 15243.59584 | BK140: 5744.81111 | BL140: 17268.30336 | BM140: 0
BJ141: 15479.31488 | BK141: 2328.048882 | BL141: 17268.30336 | BM141: 0
Q142: =IF(AND(I142="",N142=""),"0%",IF(OR(I142="",I142=0),N142/1-1,N142/I142-1)) -> 0% | BJ142: 15479.31488 | BK142: 8881.58333 | BL142: 17482.64918 | BM142: 0
BJ143: 15558.82555 | BK143: 2006.086844 | BL143: 17482.64918 | BM143: 0
BJ144: 15558.82555 | BK144: 3868.145998 | BL144: 17534.95079 | BM144: 0
BJ145: 15838.16124 | BK145: 6371.057046 | BL145: 17534.95079 | BM145: 0
BJ146: 15838.16124 | BK146: 6553.464904 | BL146: 17823.62631 | BM146: 0
BJ147: 15973.1035 | BK147: 5659.675205 | BL147: 17823.62631 | BM147: 0
BJ148: 15973.1035 | BK148: 14768.4172 | BL148: 17852.3877 | BM148: 0
BJ149: 16246.49885 | BK149: 4211.111094 | BL149: 17852.3877 | BM149: 0
BJ150: 16246.49885 | BK150: 16649.55296 | BL150: 18173.07237 | BM150: 0
BJ151: 16299.65548 | BK151: 25821.10312 | BL151: 18173.07237 | BM151: 0
Q152: =IF(AND(I152="",N152=""),"0%",IF(OR(I152="",I152=0),N152/1-1,N152/I152-1)) -> 0% | T152: =IF(OR(N112="",Q132="",Q142="",Q152=""),"",(N112*0.45) + (Q132*0.15) + (Q142*0.2) + (Q152*0.2)) -> 0 | BJ152: 16299.65548 | BK152: 4201.295831 | BL152: 18246.51809 | BM152: 0
BJ153: 16654.88383 | BK153: 15644.46807 | BL153: 18246.51809 | BM153: 0
BJ154: 16654.88383 | BK154: 3715.89697 | BL154: 18566.13194 | BM154: 0
BJ155: 16870.72032 | BK155: 4068.811867 | BL155: 18566.13194 | BM155: 0
BJ156: 16870.72032 | BK156: 26490.57844 | BL156: 18599.40986 | BM156: 0
BJ157: 16877.2059 | BK157: 3506.732633 | BL157: 18599.40986 | BM157: 0
BJ158: 16877.2059 | BK158: 4395.137261 | BL158: 18704.91893 | BM158: 0
BJ159: 16963.21785 | BK159: 59844.96092 | BL159: 18704.91893 | BM159: 0
BJ160: 16963.21785 | BK160: 10170.48821 | BL160: 18713.93538 | BM160: 0
BJ161: 17268.30336 | BK161: 7692.785003 | BL161: 18713.93538 | BM161: 0
BJ162: 17268.30336 | BK162: 103273.1815 | BL162: 18758.71467 | BM162: 0
BJ163: 17482.64918 | BK163: 17692.81129 | BL163: 18758.71467 | BM163: 0
BJ164: 17482.64918 | BK164: 12550.65214 | BL164: 18853.75329 | BM164: 0
BJ165: 17534.95079 | BK165: 18689.3614 | BL165: 18853.75329 | BM165: 0
BJ166: 17534.95079 | BK166: 44046.94794 | BL166: 19125.09383 | BM166: 0
BJ167: 17823.62631 | BK167: 3889.616514 | BL167: 19125.09383 | BM167: 0
BJ168: 17823.62631 | BK168: 6670.121438 | BL168: 19709.14047 | BM168: 0
BJ169: 17852.3877 | BK169: 9599.040859 | BL169: 19709.14047 | BM169: 0
BJ170: 17852.3877 | BK170: 6687.226672 | BL170: 20733.6313 | BM170: 0
BJ171: 18173.07237 | BK171: 7743.736291 | BL171: 20733.6313 | BM171: 0
BJ172: 18173.07237 | BK172: 5403.986563 | BL172: 20798.52623 | BM172: 0
BJ173: 18246.51809 | BK173: 4859.379357 | BL173: 20798.52623 | BM173: 0
BJ174: 18246.51809 | BK174: 18111.88982 | BL174: 21167.17411 | BM174: 0
BJ175: 18566.13194 | BK175: 7344.836775 | BL175: 21167.17411 | BM175: 0
BJ176: 18566.13194 | BK176: 20062.72127 | BL176: 21674.96386 | BM176: 0
BJ177: 18599.40986 | BK177: 28763.20302 | BL177: 21674.96386 | BM177: 0
BJ178: 18599.40986 | BK178: 10274.39557 | BL178: 21918.9253 | BM178: 0
BJ179: 18704.91893 | BK179: 18633.9606 | BL179: 21918.9253 | BM179: 0
BJ180: 18704.91893 | BK180: 13984.19135 | BL180: 21958.0346 | BM180: 0
BJ181: 18713.93538 | BK181: 52601.97328 | BL181: 21958.0346 | BM181: 0
BJ182: 18713.93538 | BK182: 23953.55836 | BL182: 22028.38714 | BM182: 0
BJ183: 18758.71467 | BK183: 9033.36033 | BL183: 22028.38714 | BM183: 0
BJ184: 18758.71467 | BK184: 48289.50529 | BL184: 22372.26683 | BM184: 0
BJ185: 18853.75329 | BK185: 11160.23218 | BL185: 22372.26683 | BM185: 0
BJ186: 18853.75329 | BK186: 12166.15055 | BL186: 22633.81291 | BM186: 0
BJ187: 19125.09383 | BK187: 18525.0408 | BL187: 22633.81291 | BM187: 0
BJ188: 19125.09383 | BK188: 19881.22949 | BL188: 22734.57937 | BM188: 0
BJ189: 19709.14047 | BK189: 14250.56622 | BL189: 22734.57937 | BM189: 0
BJ190: 19709.14047 | BK190: 14344.35004 | BL190: 22806.60416 | BM190: 0
BJ191: 20733.6313 | BK191: 21537.66425 | BL191: 22806.60416 | BM191: 0
BJ192: 20733.6313 | BK192: 89141.69307 | BL192: 24224.36676 | BM192: 0
BJ193: 20798.52623 | BK193: 7625.24684 | BL193: 24224.36676 | BM193: 0
BJ194: 20798.52623 | BK194: 35448.6669 | BL194: 24721.13901 | BM194: 0
BJ195: 21167.17411 | BK195: 7807.125105 | BL195: 24721.13901 | BM195: 0
BJ196: 21167.17411 | BK196: 32778.327 | BL196: 25200.01123 | BM196: 0
BJ197: 21674.96386 | BK197: 37513.61773 | BL197: 25200.01123 | BM197: 0
BJ198: 21674.96386 | BK198: 7938.986656 | BL198: 25324.83316 | BM198: 0
BJ199: 21918.9253 | BK199: 15615.82718 | BL199: 25324.83316 | BM199: 0
BJ200: 21918.9253 | BK200: 12166.46166 | BL200: 25860.84867 | BM200: 0
BJ201: 21958.0346 | BK201: 8948.506411 | BL201: 25860.84867 | BM201: 0
BJ202: 21958.0346 | BK202: 9512.862035 | BL202: 27131.5929 | BM202: 0
BJ203: 22028.38714 | BK203: 19250.96424 | BL203: 27131.5929 | BM203: 0
BJ204: 22028.38714 | BK204: 24518.50005 | BL204: 27733.87652 | BM204: 0
BJ205: 22372.26683 | BK205: 15639.78316 | BL205: 27733.87652 | BM205: 0
BJ206: 22372.26683 | BK206: 18480.34187 | BL206: 27857.32531 | BM206: 0
BJ207: 22633.81291 | BK207: 35389.69216 | BL207: 27857.32531 | BM207: 0
BJ208: 22633.81291 | BK208: 19335.60954 | BL208: 28275.48458 | BM208: 0
BJ209: 22734.57937 | BK209: 19099.23889 | BL209: 28275.48458 | BM209: 0
BJ210: 22734.57937 | BK210: 14386.1024 | BL210: 28290.1127 | BM210: 0
BJ211: 22806.60416 | BK211: 18683.74906 | BL211: 28290.1127 | BM211: 0
BJ212: 22806.60416 | BK212: 23055.83497 | BL212: 28864.76942 | BM212: 0
BJ213: 24224.36676 | BK213: 67882.06496 | BL213: 28864.76942 | BM213: 0
BJ214: 24224.36676 | BK214: 27900.60746 | BL214: 29053.704 | BM214: 0
BJ215: 24721.13901 | BK215: 16725.70379 | BL215: 29053.704 | BM215: 0
... 127 more rows

Sheet new sales team RoI
B1: HOW COULD PRODUCTIVITY GAINS AFFECT COMMERCIAL PERFORMANCE?
B3: Current/past year revenue is | F3: ='current sales team RoI'!H6 -> 0
B4: Expected/budget revenue for the current/next year?
B12: The Next Level Sales System will deliver improvements in 3 key productivity measures:
B14: ='sales team productivity'!Q53 ->  | C14: improvement in visit capacity
B16: ='sales team productivity'!T94 -> 0 | C16: improvement in customer coverage
B18: ='sales team productivity'!T152 -> 0 | C18: improvement in prospect penetration
B20: ='sales team resourcing'!H8 -> 0 | C20: of the resourcing level deployed last/current year
A22: Now key in the revised current/next year revenue as a result of these sales team productivity gains, assuming there are no unforeseen changes to revenue or sales team cost budgeting that are outside the control of the sales team (eg changes to products, market, price, regulatory changes et al)
F37: =IF(OR(B37="",F27=""),"",B37*F27) -> 
B43: Now the business case to link sales team productivity gains to commercial outcomes shows
B47: =F37 ->  | D47: : | F47: ='sales team resourcing'!R22 -> 
B54: =F37 ->  | D54: :
B59: How does this translate to the cost of each visit?
B61: Current Cost of Visit | E61: Target Cost of Visit | H61: Improvement factor
B62: =IF(ISERROR('current sales team RoI'!H37/('sales team productivity'!I53*40))=TRUE,0,'current sales team RoI'!H37/('sales team productivity'!I53*40)) -> 0 | E62: =IF(ISERROR('sales team resourcing'!B16/('sales team productivity'!N53*40))=TRUE,0,'sales team resourcing'!B16/('sales team productivity'!N53*40)) -> 0 | H62: =IF(ISERROR(1-E62/B62)=TRUE,0,1-E62/B62) -> 0
BA66: CHART 4 | BC66: =IF(ISNA(VLOOKUP($B$62,BA67:BB142,2,FALSE )),0,VLOOKUP($B$62,BA67:BB142,2,FALSE )) -> 0.0001 | BD66: =IF(ISNA(VLOOKUP($E$62,BA67:BB142,2,FALSE )),0,VLOOKUP($E$62,BA67:BB142,2,FALSE )) -> 0.0001
BA67: 0 | BB67: =_xlfn.GAMMA.DIST(BA67,3.3,65,FALSE)+0.0001 -> 0.0001 | BC67: =BB67 -> 0.0001 | BD67: =BB67 -> 0.0001
BA68: 10 | BB68: =_xlfn.GAMMA.DIST(BA68,3.3,65,FALSE)+0.0001 -> 0.0001663559577 | BC68: =IF(IF($BC$66>0,IF(BB68=$BC$66,$BC$66,0),IF(BA68=$B$62,BB68, AND($B$62>=BA67,$B$62<BA68))),BB68,0.0001) -> 0.0001 | BD68: =IF(IF($BD$66>0,IF(BB68=$BD$66,$BD$66,0),IF(BA68=$E$62,BB68, AND($E$62>=BA67,$E$62<BA68))),BB68,0.0001) -> 0.0001
BA69: 20 | BB69: 0.0003801782229 | BC69: =IF(IF($BC$66>0,IF(BB69=$BC$66,$BC$66,0),IF(BA69=$B$62,BB69, AND($B$62>=BA68,$B$62<BA69))),BB69,0.0001) -> 0.0001 | BD69: =IF(IF($BD$66>0,IF(BB69=$BD$66,$BD$66,0),IF(BA69=$E$62,BB69, AND($E$62>=BA68,$E$62<BA69))),BB69,0.0001) -> 0.0001
BA70: 30 | BB70: 0.0007104213801 | BC70: =IF(IF($BC$66>0,IF(BB70=$BC$66,$BC$66,0),IF(BA70=$B$62,BB70, AND($B$62>=BA69,$B$62<BA70))),BB70,0.0001) -> 0.0001 | BD70: 0.0001
BA71: 40 | BB71: 0.001114318379 | BC71: =IF(IF($BC$66>0,IF(BB71=$BC$66,$BC$66,0),IF(BA71=$B$62,BB71, AND($B$62>=BA70,$B$62<BA71))),BB71,0.0001) -> 0.0001 | BD71: 0.0001
BA72: 50 | BB72: 0.001552957092 | BC72: 0.0001 | BD72: 0.0001
BA73: 60 | BB73: 0.001994763977 | BC73: 0.0001 | BD73: 0.0001
BA74: 70 | BB74: 0.002415891453 | BC74: 0.0001 | BD74: 0.0001
BA75: 80 | BB75: 0.002799511254 | BC75: 0.0001 | BD75: 0.0001
BA76: 90 | BB76: 0.003134739435 | BC76: 0.0001 | BD76: 0.0001
BA77: 100 | BB77: 0.003415500524 | BC77: 0.0001 | BD77: 0.0001
BA78: 110 | BB78: 0.003639465969 | BC78: 0.0001 | BD78: 0.0001
BA79: 120 | BB79: 0.003807122142 | BC79: 0.0001 | BD79: 0.0001
BA80: 130 | BB80: 0.003920983868 | BC80: 0.0001 | BD80: 0.0001
BA81: 140 | BB81: 0.003984950058 | BC81: 0.0001 | BD81: 0.0001
BA82: 150 | BB82: 0.004003788841 | BC82: 0.004003788841 | BD82: 0.0001
BA83: 160 | BB83: 0.003982735861 | BC83: 0.0001 | BD83: 0.0001
BA84: 170 | BB84: 0.003927188652 | BC84: 0.0001 | BD84: 0.0001
BA85: 180 | BB85: 0.003842480767 | BC85: 0.0001 | BD85: 0.0001
BA86: 190 | BB86: 0.003733720859 | BC86: 0.0001 | BD86: 0.0001
BA87: 200 | BB87: 0.003605683738 | BC87: 0.0001 | BD87: 0.0001
BA88: 210 | BB88: 0.003462742295 | BC88: 0.0001 | BD88: 0.0001
BA89: 220 | BB89: 0.003308830955 | BC89: 0.0001 | BD89: 0.0001
BA90: 230 | BB90: 0.003147432956 | BC90: 0.0001 | BD90: 0.0001
BA91: 240 | BB91: 0.002981585149 | BC91: 0.0001 | BD91: 0.0001
BA92: 250 | BB92: 0.002813895279 | BC92: 0.0001 | BD92: 0.0001
BA93: 260 | BB93: 0.002646567724 | BC93: 0.0001 | BD93: 0.0001
BA94: 270 | BB94: 0.00248143456 | BC94: 0.0001 | BD94: 0.0001
BA95: 280 | BB95: 0.002319989553 | BC95: 0.0001 | BD95: 0.0001
BA96: 290 | BB96: 0.002163423242 | BC96: 0.0001 | BD96: 0.0001
BA97: 300 | BB97: 0.002012657788 | BC97: 0.0001 | BD97: 0.0001
BA98: 310 | BB98: 0.001868380623 | BC98: 0.0001 | BD98: 0.0001
BA99: 320 | BB99: 0.001731076258 | BC99: 0.0001 | BD99: 0.0001
BA100: 330 | BB100: 0.001601055817 | BC100: 0.0001 | BD100: 0.0001
BA101: 340 | BB101: 0.001478484077 | BC101: 0.0001 | BD101: 0.0001
BA102: 350 | BB102: 0.001363403893 | BC102: 0.0001 | BD102: 0.0001
BA103: 360 | BB103: 0.001255758045 | BC103: 0.0001 | BD103: 0.0001
BA104: 370 | BB104: 0.001155408537 | BC104: 0.0001 | BD104: 0.0001
BA105: 380 | BB105: 0.001062153522 | BC105: 0.0001 | BD105: 0.0001
BA106: 390 | BB106: 0.0009757419671 | BC106: 0.0001 | BD106: 0.0001
BA107: 400 | BB107: 0.0008958862662 | BC107: 0.0001 | BD107: 0.0001
BA108: 410 | BB108: 0.0008222729749 | BC108: 0.0001 | BD108: 0.0001
BA109: 420 | BB109: 0.0007545718539 | BC109: 0.0001 | BD109: 0.0001
BA110: 430 | BB110: 0.0006924434077 | BC110: 0.0001 | BD110: 0.0001
BA111: 440 | BB111: 0.0006355450922 | BC111: 0.0001 | BD111: 0.0001
BA112: 450 | BB112: 0.0005835363566 | BC112: 0.0001 | BD112: 0.0001
BA113: 460 | BB113: 0.0005360826712 | BC113: 0.0001 | BD113: 0.0001
BA114: 470 | BB114: 0.0004928586808 | BC114: 0.0001 | BD114: 0.0001
BA115: 480 | BB115: 0.0004535506101 | BC115: 0.0001 | BD115: 0.0001
BA116: 490 | BB116: 0.0004178580344 | BC116: 0.0001 | BD116: 0.0001
BA117: 500 | BB117: 0.0003854951164 | BC117: 0.0001 | BD117: 0.0001
BA118: 510 | BB118: 0.0003561913977 | BC118: 0.0001 | BD118: 0.0001
BA119: 520 | BB119: 0.0003296922239 | BC119: 0.0001 | BD119: 0.0001
BA120: 530 | BB120: 0.0003057588703 | BC120: 0.0001 | BD120: 0.0001
BA121: 540 | BB121: 0.0002841684269 | BC121: 0.0001 | BD121: 0.0001
BA122: 550 | BB122: 0.0002647134945 | BC122: 0.0001 | BD122: 0.0001
BA123: 560 | BB123: 0.0002472017326 | BC123: 0.0001 | BD123: 0.0001
BA124: 570 | BB124: 0.0002314552974 | BC124: 0.0001 | BD124: 0.0001
BA125: 580 | BB125: 0.0002173101995 | BC125: 0.0001 | BD125: 0.0001
BA126: 590 | BB126: 0.000204615607 | BC126: 0.0001 | BD126: 0.0001
BA127: 600 | BB127: 0.0001932331146 | BC127: 0.0001 | BD127: 0.0001
BA128: 610 | BB128: 0.0001830359965 | BC128: 0.0001 | BD128: 0.0001
BA129: 620 | BB129: 0.0001739084563 | BC129: 0.0001 | BD129: 0.0001
BA130: 630 | BB130: 0.0001657448855 | BC130: 0.0001 | BD130: 0.0001
BA131: 640 | BB131: 0.0001584491385 | BC131: 0.0001 | BD131: 0.0001
BA132: 650 | BB132: =_xlfn.GAMMA.DIST(BA132,3.3,65,FALSE)+0.0001 -> 0.0001519338308 | BC132: 0.0001 | BD132: 0.0001
BA133: 660 | BB133: 0.0001461196661 | BC133: =IF(IF($BC$66>0,IF(BB133=$BC$66,$BC$66,0),IF(BA133=$B$62,BB133, AND($B$62>=BA132,$B$62<BA133))),BB133,0.0001) -> 0.0001 | BD133: =IF(IF($BD$66>0,IF(BB133=$BD$66,$BD$66,0),IF(BA133=$E$62,BB133, AND($E$62>=BA132,$E$62<BA133))),BB133,0.0001) -> 0.0001
BA134: 670 | BB134: 0.0001409347944 | BC134: 0.0001 | BD134: 0.0001
BA135: 680 | BB135: 0.0001363142042 | BC135: 0.0001 | BD135: 0.0001
BA136: 690 | BB136: 0.0001321991498 | BC136: 0.0001 | BD136: 0.0001
BA137: 700 | BB137: 0.0001285366147 | BC137: 0.0001 | BD137: 0.0001
BA138: 710 | BB138: 0.0001252788101 | BC138: 0.0001 | BD138: 0.0001
BA139: 720 | BB139: 0.0001223827081 | BC139: 0.0001 | BD139: 0.0001
BA140: 730 | BB140: 0.0001198096103 | BC140: 0.0001 | BD140: 0.0001
BA141: 740 | BB141: 0.0001175247476 | BC141: 0.0001 | BD141: 0.0001
BA142: 750 | BB142: 0.0001154969127 | BC142: 0.0001 | BD142: 0.0001

Sheet Sheet1 (hidden)

Sheet StO scenario priorities
R1: HC | S1: VC | T1: RHS
B2: SALES TEAM PRIORITY SCENARIO SETTER | R2: SET | S2: SET | T2: MAXIMISE
R3: OPTIMISE | S3: MAXIMISE | T3: MINIMISE
B4: What are the priorities & requirements for achieving sales team goals? For example, | S4: OPTIMISE | T4: OPTIMISE
C6: Want to increase the visit capacity of the existing resource level?
C7: Want to prioritise prospect penetration over customer coverage?
C8: Want to reduce resource level while maintaining adequate customer coverage?
B10: Tell us, so we can ensure that our StO modelling achieves your goals following those same priorities & requirements
B14: 1. View the left side of the equation below. Select the requirement for each parameter by using the drop down menus.
C15: Which of these parameters (resource level & visit capacity) are to be SET (unable to be changed)? Choose to set 0, 1 or both parameters
B17: 2. If resource level and visit capacity are both SET, which of the remaining parameters is to be set at MAXIMISE (make the most it can be) or MINIMISE (do the minimum to get by)?
C18: For example choose to maximise or minimise customer coverage AND/OR prospect penetration
B20: 3. If resource level is SET, which of the remaining parameters are to be set at MAXIMISE (make the most it can be?)
C21: For example choose to maximise visit capacity AND maximise/minimise customer coverage OR prospect penetration
C22: OR then choose to optimise visit capacity (make the best of current resources) AND maximise/minimise customer coverage AND/OR prospect penetration
B24: 4. If resource level is NOT SET, OPTIMISE it (make the best of current resources)
C25: For example choose to maximise visit capacity, and then choose to maximise/minimise customer coverage OR prospect penetration
C26: If visit capacity is optimised or set, then choose to maximise/minimise customer coverage AND/OR prospect penetration
B28: 5. Select OPTIMISE (making the best of current situation) for the remaining parameter/s.
C30: Scenario 1
E39: =IF(AND($E$35<>"",$H$35<>"",$L$35<>"",$P$35<>""),IF(ISERROR("The Next Level's StO modelling will work according to the following guidelines:"),"","The Next Level's StO modelling will work according to the following guidelines:"),"") -> 
C41: =IF(AND($E$35<>"",$H$35<>"",$L$35<>"",$P$35<>""),IF(ISERROR("The Next Level will "&E35&" resource level, "&H35&" visit capacity, "&L35&" customer coverage and "&P35&" prospect penetration"),"","The Next Level will "&E35&" resource level, "&H35&" visit capacity, "&L35&" customer coverage and "&P35&" prospect penetration"),"") -> 
C44: Scenario 2
C53: =IF(AND($E$49<>"",$H$49<>"",$L$49<>"",$P$49<>""),IF(ISERROR("The Next Level will "&E49&" resource level, "&H49&" visit capacity, "&L49&" customer coverage and "&P49&" prospect penetration"),"","The Next Level will "&E49&" resource level, "&H49&" visit capacity, "&L49&" customer coverage and "&P49&" prospect penetration"),"") -> 
C55: Scenario 3
C65: =IF(AND($E$60<>"",$H$60<>"",$L$60<>"",$P$60<>""),IF(ISERROR("The Next Level will "&E60&" resource level, "&H60&" visit capacity, "&L60&" customer coverage and "&P60&" prospect penetration"),"","The Next Level will "&E60&" resource level, "&H60&" visit capacity, "&L60&" customer coverage and "&P60&" prospect penetration"),"") -> 

Sheet scenario setting (hidden)
A2: Last update: November 2012
A3: Scenario | C3: HC | E3: VC | H3: CC | J3: PP
A5: Double set | C5: set | E5: set | H5: max/min | J5: max/min
H6: max/min | J6: optimise
H7: optimise | J7: max/min
A9: SetOpt | C9: set | E9: optimise | H9: max/min | J9: max/min
H10: max/min | J10: optimise
H11: optimise | J11: max/min
A13: SetMax | C13: set | E13: maximise | H13: optimise | J13: optimise
H14: max/min | J14: optimise
H15: optimise | J15: max/min
A17: OptMax | C17: optimise | E17: maximise | H17: optimise | J17: optimise
H18: max/min | J18: optimise
H19: optimise | J19: max/min
A21: Double opt | C21: optimise | E21: optimise | H21: max/min | J21: max/min
H22: max/min | J22: optimise
H23: optimise | J23: max/min
